Workbook

Sheet Лист1
A2: № | B2: ДАТА | C2: НОМЕР | D2: ДОП НОМЕР | E2: ПОЗИЦИЯ | F2: НАЗВАНИЕ
A3: 1 | B3: 2023-07-03 | C3: =IF(B3,IFERROR(u_4(C$2:C2,D3,E3),"А1"),"") -> A1-1 | D3: A1 | E3: =IF($D3="","",COUNTIF($D$3:D3,$D3)) -> 1 | F3: Название
A4: =A3+1 -> 2 | B4: 2023-07-03 | C4: =IF(B4,IFERROR(u_4(C$2:C3,D4,E4),"А1"),"") -> A1-2 | D4: A1 | E4: =IF($D4="","",COUNTIF($D$3:D4,$D4)) -> 2 | F4: Стул
A5: 3 | B5: 2023-07-03 | C5: =IF(B5,IFERROR(u_4(C$2:C4,D5,E5),"А1"),"") -> A1-3 | D5: A1 | E5: =IF($D5="","",COUNTIF($D$3:D5,$D5)) -> 3 | F5: Название
A6: 4 | B6: 2023-07-03 | C6: =IF(B6,IFERROR(u_4(C$2:C5,D6,E6),"А1"),"") -> А1 | E6: =IF($D6="","",COUNTIF($D$3:D6,$D6)) ->  | F6: Название
A7: 5 | B7: 2023-07-03 | C7: =IF(B7,IFERROR(u_4(C$2:C6,D7,E7),"А1"),"") -> A1-4 | D7: A1 | E7: =IF($D7="","",COUNTIF($D$3:D7,$D7)) -> 4 | F7: Название
A8: 6 | B8: 2023-07-03 | C8: =IF(B8,IFERROR(u_4(C$2:C7,D8,E8),"А1"),"") -> A1-5 | D8: A1 | E8: =IF($D8="","",COUNTIF($D$3:D8,$D8)) -> 5 | F8: Название
A9: 7 | B9: 2023-07-03 | C9: =IF(B9,IFERROR(u_4(C$2:C8,D9,E9),"А1"),"") -> А2 | E9: =IF($D9="","",COUNTIF($D$3:D9,$D9)) ->  | F9: Название
A10: 8 | B10: 2023-07-03 | C10: =IF(B10,IFERROR(u_4(C$2:C9,D10,E10),"А1"),"") -> А3 | E10: =IF($D10="","",COUNTIF($D$3:D10,$D10)) ->  | F10: Название
A11: 9 | B11: 2023-07-03 | C11: =IF(B11,IFERROR(u_4(C$2:C10,D11,E11),"А1"),"") -> А4 | E11: =IF($D11="","",COUNTIF($D$3:D11,$D11)) ->  | F11: Название
A12: 10 | B12: 2023-07-03 | C12: =IF(B12,IFERROR(u_4(C$2:C11,D12,E12),"А1"),"") -> А5 | E12: =IF($D12="","",COUNTIF($D$3:D12,$D12)) -> 
A13: 11 | B13: 2023-07-03 | C13: =IF(B13,IFERROR(u_4(C$2:C12,D13,E13),"А1"),"") -> А6
A14: 12 | B14: 2023-07-03 | C14: =IF(B14,IFERROR(u_4(C$2:C13,D14,E14),"А1"),"") -> А7
A15: 13 | B15: 2023-07-03 | C15: =IF(B15,IFERROR(u_4(C$2:C14,D15,E15),"А1"),"") -> А8
A16: 14 | B16: 2023-07-03 | C16: =IF(B16,IFERROR(u_4(C$2:C15,D16,E16),"А1"),"") -> А9
A17: 15 | C17: =IF(B17,IFERROR(u_4(C$2:C16,D17,E17),"А1"),"") -> 
A18: 16 | C18: =IF(B18,IFERROR(u_4(C$2:C17,D18,E18),"А1"),"") -> 
A19: 17 | C19: =IF(B19,IFERROR(u_4(C$2:C18,D19,E19),"А1"),"") -> 
A20: 18 | C20: =IF(B20,IFERROR(u_4(C$2:C19,D20,E20),"А1"),"") -> 
A21: 19 | C21: =IF(B21,IFERROR(u_4(C$2:C20,D21,E21),"А1"),"") -> 
A22: 20 | C22: =IF(B22,IFERROR(u_4(C$2:C21,D22,E22),"А1"),"") -> 
A23: 21 | C23: =IF(B23,IFERROR(u_4(C$2:C22,D23,E23),"А1"),"") -> 
A24: 22 | C24: =IF(B24,IFERROR(u_4(C$2:C23,D24,E24),"А1"),"") -> 
A25: 23 | C25: =IF(B25,IFERROR(u_4(C$2:C24,D25,E25),"А1"),"") -> 
A26: 24 | C26: =IF(B26,IFERROR(u_4(C$2:C25,D26,E26),"А1"),"") -> 
A27: 25 | C27: =IF(B27,IFERROR(u_4(C$2:C26,D27,E27),"А1"),"") -> 
A28: 26 | C28: =IF(B28,IFERROR(u_4(C$2:C27,D28,E28),"А1"),"") -> 
A29: 27 | C29: =IF(B29,IFERROR(u_4(C$2:C28,D29,E29),"А1"),"") -> 
A30: 28 | C30: =IF(B30,IFERROR(u_4(C$2:C29,D30,E30),"А1"),"") -> 
A31: 29 | C31: =IF(B31,IFERROR(u_4(C$2:C30,D31,E31),"А1"),"") -> 
A32: 30 | C32: =IF(B32,IFERROR(u_4(C$2:C31,D32,E32),"А1"),"") -> 
A33: 31 | C33: =IF(B33,IFERROR(u_4(C$2:C32,D33,E33),"А1"),"") -> 
A34: 32 | C34: =IF(B34,IFERROR(u_4(C$2:C33,D34,E34),"А1"),"") -> 
A35: 33 | C35: =IF(B35,IFERROR(u_4(C$2:C34,D35,E35),"А1"),"") -> 
A36: 34 | C36: =IF(B36,IFERROR(u_4(C$2:C35,D36,E36),"А1"),"") -> 
A37: 35 | C37: =IF(B37,IFERROR(u_4(C$2:C36,D37,E37),"А1"),"") -> 
A38: 36 | C38: =IF(B38,IFERROR(u_4(C$2:C37,D38,E38),"А1"),"") -> 
A39: 37 | C39: =IF(B39,IFERROR(u_4(C$2:C38,D39,E39),"А1"),"") -> 
A40: 38 | C40: =IF(B40,IFERROR(u_4(C$2:C39,D40,E40),"А1"),"") -> 
A41: 39 | C41: =IF(B41,IFERROR(u_4(C$2:C40,D41,E41),"А1"),"") -> 
A42: 40 | C42: =IF(B42,IFERROR(u_4(C$2:C41,D42,E42),"А1"),"") -> 
A43: 41 | C43: =IF(B43,IFERROR(u_4(C$2:C42,D43,E43),"А1"),"") -> 
A44: 42 | C44: =IF(B44,IFERROR(u_4(C$2:C43,D44,E44),"А1"),"") -> 
A45: 43 | C45: =IF(B45,IFERROR(u_4(C$2:C44,D45,E45),"А1"),"") -> 
A46: 44 | C46: =IF(B46,IFERROR(u_4(C$2:C45,D46,E46),"А1"),"") -> 
A47: 45 | C47: =IF(B47,IFERROR(u_4(C$2:C46,D47,E47),"А1"),"") -> 
A48: 46 | C48: =IF(B48,IFERROR(u_4(C$2:C47,D48,E48),"А1"),"") -> 
A49: 47 | C49: =IF(B49,IFERROR(u_4(C$2:C48,D49,E49),"А1"),"") -> 
A50: 48 | C50: =IF(B50,IFERROR(u_4(C$2:C49,D50,E50),"А1"),"") -> 
A51: 49 | C51: =IF(B51,IFERROR(u_4(C$2:C50,D51,E51),"А1"),"") -> 
A52: 50 | C52: =IF(B52,IFERROR(u_4(C$2:C51,D52,E52),"А1"),"") -> 
A53: 51 | C53: =IF(B53,IFERROR(u_4(C$2:C52,D53,E53),"А1"),"") -> 
A54: 52 | C54: =IF(B54,IFERROR(u_4(C$2:C53,D54,E54),"А1"),"") -> 
A55: 53 | C55: =IF(B55,IFERROR(u_4(C$2:C54,D55,E55),"А1"),"") -> 
A56: 54 | C56: =IF(B56,IFERROR(u_4(C$2:C55,D56,E56),"А1"),"") -> 
A57: 55 | C57: =IF(B57,IFERROR(u_4(C$2:C56,D57,E57),"А1"),"") -> 
A58: 56 | C58: =IF(B58,IFERROR(u_4(C$2:C57,D58,E58),"А1"),"") -> 
A59: 57 | C59: =IF(B59,IFERROR(u_4(C$2:C58,D59,E59),"А1"),"") -> 
A60: 58 | C60: =IF(B60,IFERROR(u_4(C$2:C59,D60,E60),"А1"),"") -> 
A61: 59 | C61: =IF(B61,IFERROR(u_4(C$2:C60,D61,E61),"А1"),"") -> 
A62: 60 | C62: =IF(B62,IFERROR(u_4(C$2:C61,D62,E62),"А1"),"") -> 
A63: 61 | C63: =IF(B63,IFERROR(u_4(C$2:C62,D63,E63),"А1"),"") -> 
A64: 62 | C64: =IF(B64,IFERROR(u_4(C$2:C63,D64,E64),"А1"),"") -> 
A65: 63 | C65: =IF(B65,IFERROR(u_4(C$2:C64,D65,E65),"А1"),"") -> 
A66: 64 | C66: =IF(B66,IFERROR(u_4(C$2:C65,D66,E66),"А1"),"") -> 
A67: 65 | C67: =IF(B67,IFERROR(u_4(C$2:C66,D67,E67),"А1"),"") -> 
A68: =A67+1 -> 66 | C68: =IF(B68,IFERROR(u_4(C$2:C67,D68,E68),"А1"),"") -> 
A69: 67 | C69: =IF(B69,IFERROR(u_4(C$2:C68,D69,E69),"А1"),"") -> 
A70: 68 | C70: =IF(B70,IFERROR(u_4(C$2:C69,D70,E70),"А1"),"") -> 
A71: 69 | C71: =IF(B71,IFERROR(u_4(C$2:C70,D71,E71),"А1"),"") -> 
A72: 70 | C72: =IF(B72,IFERROR(u_4(C$2:C71,D72,E72),"А1"),"") -> 
A73: 71 | C73: =IF(B73,IFERROR(u_4(C$2:C72,D73,E73),"А1"),"") -> 
A74: 72 | C74: =IF(B74,IFERROR(u_4(C$2:C73,D74,E74),"А1"),"") -> 
A75: 73 | C75: =IF(B75,IFERROR(u_4(C$2:C74,D75,E75),"А1"),"") -> 
A76: 74 | C76: =IF(B76,IFERROR(u_4(C$2:C75,D76,E76),"А1"),"") -> 
A77: 75 | C77: =IF(B77,IFERROR(u_4(C$2:C76,D77,E77),"А1"),"") -> 
A78: 76 | C78: =IF(B78,IFERROR(u_4(C$2:C77,D78,E78),"А1"),"") -> 
A79: 77 | C79: =IF(B79,IFERROR(u_4(C$2:C78,D79,E79),"А1"),"") -> 
A80: 78 | C80: =IF(B80,IFERROR(u_4(C$2:C79,D80,E80),"А1"),"") -> 
A81: 79 | C81: =IF(B81,IFERROR(u_4(C$2:C80,D81,E81),"А1"),"") -> 
A82: 80 | C82: =IF(B82,IFERROR(u_4(C$2:C81,D82,E82),"А1"),"") -> 
A83: 81 | C83: =IF(B83,IFERROR(u_4(C$2:C82,D83,E83),"А1"),"") -> 
A84: 82 | C84: =IF(B84,IFERROR(u_4(C$2:C83,D84,E84),"А1"),"") -> 
A85: 83 | C85: =IF(B85,IFERROR(u_4(C$2:C84,D85,E85),"А1"),"") -> 
A86: 84 | C86: =IF(B86,IFERROR(u_4(C$2:C85,D86,E86),"А1"),"") -> 
A87: 85 | C87: =IF(B87,IFERROR(u_4(C$2:C86,D87,E87),"А1"),"") -> 
A88: 86 | C88: =IF(B88,IFERROR(u_4(C$2:C87,D88,E88),"А1"),"") -> 
A89: 87 | C89: =IF(B89,IFERROR(u_4(C$2:C88,D89,E89),"А1"),"") -> 
A90: 88 | C90: =IF(B90,IFERROR(u_4(C$2:C89,D90,E90),"А1"),"") -> 
A91: 89 | C91: =IF(B91,IFERROR(u_4(C$2:C90,D91,E91),"А1"),"") -> 
A92: 90 | C92: =IF(B92,IFERROR(u_4(C$2:C91,D92,E92),"А1"),"") -> 
A93: 91 | C93: =IF(B93,IFERROR(u_4(C$2:C92,D93,E93),"А1"),"") -> 
A94: 92 | C94: =IF(B94,IFERROR(u_4(C$2:C93,D94,E94),"А1"),"") -> 
A95: 93 | C95: =IF(B95,IFERROR(u_4(C$2:C94,D95,E95),"А1"),"") -> 
A96: 94 | C96: =IF(B96,IFERROR(u_4(C$2:C95,D96,E96),"А1"),"") -> 
A97: 95 | C97: =IF(B97,IFERROR(u_4(C$2:C96,D97,E97),"А1"),"") -> 
A98: 96 | C98: =IF(B98,IFERROR(u_4(C$2:C97,D98,E98),"А1"),"") -> 
A99: 97 | C99: =IF(B99,IFERROR(u_4(C$2:C98,D99,E99),"А1"),"") -> 
A100: 98 | C100: =IF(B100,IFERROR(u_4(C$2:C99,D100,E100),"А1"),"") -> 
A101: =A100+1 -> 99 | C101: =IF(B101,IFERROR(u_4(C$2:C100,D101,E101),"А1"),"") -> 
A102: 100 | C102: =IF(B102,IFERROR(u_4(C$2:C101,D102,E102),"А1"),"") -> 
A103: 101 | C103: =IF(B103,IFERROR(u_4(C$2:C102,D103,E103),"А1"),"") -> 
A104: 102 | C104: =IF(B104,IFERROR(u_4(C$2:C103,D104,E104),"А1"),"") -> 
A105: 103 | C105: =IF(B105,IFERROR(u_4(C$2:C104,D105,E105),"А1"),"") -> 
A106: 104 | C106: =IF(B106,IFERROR(u_4(C$2:C105,D106,E106),"А1"),"") -> 
A107: 105 | C107: =IF(B107,IFERROR(u_4(C$2:C106,D107,E107),"А1"),"") -> 
A108: 106 | C108: =IF(B108,IFERROR(u_4(C$2:C107,D108,E108),"А1"),"") -> 
A109: 107 | C109: =IF(B109,IFERROR(u_4(C$2:C108,D109,E109),"А1"),"") -> 
A110: 108 | C110: =IF(B110,IFERROR(u_4(C$2:C109,D110,E110),"А1"),"") -> 
A111: 109 | C111: =IF(B111,IFERROR(u_4(C$2:C110,D111,E111),"А1"),"") -> 
A112: 110 | C112: =IF(B112,IFERROR(u_4(C$2:C111,D112,E112),"А1"),"") -> 
A113: 111 | C113: =IF(B113,IFERROR(u_4(C$2:C112,D113,E113),"А1"),"") -> 
A114: 112 | C114: =IF(B114,IFERROR(u_4(C$2:C113,D114,E114),"А1"),"") -> 
A115: 113 | C115: =IF(B115,IFERROR(u_4(C$2:C114,D115,E115),"А1"),"") -> 
A116: 114 | C116: =IF(B116,IFERROR(u_4(C$2:C115,D116,E116),"А1"),"") -> 
A117: 115 | C117: =IF(B117,IFERROR(u_4(C$2:C116,D117,E117),"А1"),"") -> 
A118: 116 | C118: =IF(B118,IFERROR(u_4(C$2:C117,D118,E118),"А1"),"") -> 
A119: 117 | C119: =IF(B119,IFERROR(u_4(C$2:C118,D119,E119),"А1"),"") -> 
A120: 118 | C120: =IF(B120,IFERROR(u_4(C$2:C119,D120,E120),"А1"),"") -> 
A121: 119 | C121: =IF(B121,IFERROR(u_4(C$2:C120,D121,E121),"А1"),"") -> 
A122: 120 | C122: =IF(B122,IFERROR(u_4(C$2:C121,D122,E122),"А1"),"") -> 
A123: 121 | C123: =IF(B123,IFERROR(u_4(C$2:C122,D123,E123),"А1"),"") -> 
A124: 122 | C124: =IF(B124,IFERROR(u_4(C$2:C123,D124,E124),"А1"),"") -> 
A125: 123 | C125: =IF(B125,IFERROR(u_4(C$2:C124,D125,E125),"А1"),"") -> 
A126: 124 | C126: =IF(B126,IFERROR(u_4(C$2:C125,D126,E126),"А1"),"") -> 
A127: 125 | C127: =IF(B127,IFERROR(u_4(C$2:C126,D127,E127),"А1"),"") -> 
A128: 126 | C128: =IF(B128,IFERROR(u_4(C$2:C127,D128,E128),"А1"),"") -> 
A129: 127 | C129: =IF(B129,IFERROR(u_4(C$2:C128,D129,E129),"А1"),"") -> 
A130: 128 | C130: =IF(B130,IFERROR(u_4(C$2:C129,D130,E130),"А1"),"") -> 
A131: 129 | C131: =IF(B131,IFERROR(u_4(C$2:C130,D131,E131),"А1"),"") -> 
A132: 130 | C132: =IF(B132,IFERROR(u_4(C$2:C131,D132,E132),"А1"),"") -> 
A133: 131 | C133: =IF(B133,IFERROR(u_4(C$2:C132,D133,E133),"А1"),"") -> 
A134: 132 | C134: =IF(B134,IFERROR(u_4(C$2:C133,D134,E134),"А1"),"") -> 
A135: 133 | C135: =IF(B135,IFERROR(u_4(C$2:C134,D135,E135),"А1"),"") -> 
A136: 134 | C136: =IF(B136,IFERROR(u_4(C$2:C135,D136,E136),"А1"),"") -> 
A137: 135 | C137: =IF(B137,IFERROR(u_4(C$2:C136,D137,E137),"А1"),"") -> 
A138: 136 | C138: =IF(B138,IFERROR(u_4(C$2:C137,D138,E138),"А1"),"") -> 
A139: 137 | C139: =IF(B139,IFERROR(u_4(C$2:C138,D139,E139),"А1"),"") -> 
A140: 138 | C140: =IF(B140,IFERROR(u_4(C$2:C139,D140,E140),"А1"),"") -> 
A141: 139 | C141: =IF(B141,IFERROR(u_4(C$2:C140,D141,E141),"А1"),"") -> 
A142: 140 | C142: =IF(B142,IFERROR(u_4(C$2:C141,D142,E142),"А1"),"") -> 
A143: 141 | C143: =IF(B143,IFERROR(u_4(C$2:C142,D143,E143),"А1"),"") -> 
A144: 142 | C144: =IF(B144,IFERROR(u_4(C$2:C143,D144,E144),"А1"),"") -> 
A145: 143 | C145: =IF(B145,IFERROR(u_4(C$2:C144,D145,E145),"А1"),"") -> 
A146: 144 | C146: =IF(B146,IFERROR(u_4(C$2:C145,D146,E146),"А1"),"") -> 
A147: 145 | C147: =IF(B147,IFERROR(u_4(C$2:C146,D147,E147),"А1"),"") -> 
A148: 146 | C148: =IF(B148,IFERROR(u_4(C$2:C147,D148,E148),"А1"),"") -> 
A149: 147 | C149: =IF(B149,IFERROR(u_4(C$2:C148,D149,E149),"А1"),"") -> 
A150: 148 | C150: =IF(B150,IFERROR(u_4(C$2:C149,D150,E150),"А1"),"") -> 
A151: 149 | C151: =IF(B151,IFERROR(u_4(C$2:C150,D151,E151),"А1"),"") -> 
A152: 150 | C152: =IF(B152,IFERROR(u_4(C$2:C151,D152,E152),"А1"),"") -> 
A153: 151 | C153: =IF(B153,IFERROR(u_4(C$2:C152,D153,E153),"А1"),"") -> 
A154: 152 | C154: =IF(B154,IFERROR(u_4(C$2:C153,D154,E154),"А1"),"") -> 
A155: 153 | C155: =IF(B155,IFERROR(u_4(C$2:C154,D155,E155),"А1"),"") -> 
A156: 154 | C156: =IF(B156,IFERROR(u_4(C$2:C155,D156,E156),"А1"),"") -> 
A157: 155 | C157: =IF(B157,IFERROR(u_4(C$2:C156,D157,E157),"А1"),"") -> 
A158: 156 | C158: =IF(B158,IFERROR(u_4(C$2:C157,D158,E158),"А1"),"") -> 
A159: 157 | C159: =IF(B159,IFERROR(u_4(C$2:C158,D159,E159),"А1"),"") -> 
A160: 158 | C160: =IF(B160,IFERROR(u_4(C$2:C159,D160,E160),"А1"),"") -> 
A161: 159 | C161: =IF(B161,IFERROR(u_4(C$2:C160,D161,E161),"А1"),"") -> 
A162: 160 | C162: =IF(B162,IFERROR(u_4(C$2:C161,D162,E162),"А1"),"") -> 
A163: 161 | C163: =IF(B163,IFERROR(u_4(C$2:C162,D163,E163),"А1"),"") -> 
A164: 162 | C164: =IF(B164,IFERROR(u_4(C$2:C163,D164,E164),"А1"),"") -> 
A165: =A164+1 -> 163 | C165: =IF(B165,IFERROR(u_4(C$2:C164,D165,E165),"А1"),"") -> 
A166: 164 | C166: =IF(B166,IFERROR(u_4(C$2:C165,D166,E166),"А1"),"") -> 
A167: 165 | C167: =IF(B167,IFERROR(u_4(C$2:C166,D167,E167),"А1"),"") -> 
A168: 166 | C168: =IF(B168,IFERROR(u_4(C$2:C167,D168,E168),"А1"),"") -> 
A169: 167 | C169: =IF(B169,IFERROR(u_4(C$2:C168,D169,E169),"А1"),"") -> 
A170: 168 | C170: =IF(B170,IFERROR(u_4(C$2:C169,D170,E170),"А1"),"") -> 
A171: 169 | C171: =IF(B171,IFERROR(u_4(C$2:C170,D171,E171),"А1"),"") -> 
A172: 170 | C172: =IF(B172,IFERROR(u_4(C$2:C171,D172,E172),"А1"),"") -> 
A173: 171 | C173: =IF(B173,IFERROR(u_4(C$2:C172,D173,E173),"А1"),"") -> 
A174: 172 | C174: =IF(B174,IFERROR(u_4(C$2:C173,D174,E174),"А1"),"") -> 
A175: 173 | C175: =IF(B175,IFERROR(u_4(C$2:C174,D175,E175),"А1"),"") -> 
A176: 174 | C176: =IF(B176,IFERROR(u_4(C$2:C175,D176,E176),"А1"),"") -> 
A177: 175 | C177: =IF(B177,IFERROR(u_4(C$2:C176,D177,E177),"А1"),"") -> 
A178: 176 | C178: =IF(B178,IFERROR(u_4(C$2:C177,D178,E178),"А1"),"") -> 
A179: 177 | C179: =IF(B179,IFERROR(u_4(C$2:C178,D179,E179),"А1"),"") -> 
A180: 178 | C180: =IF(B180,IFERROR(u_4(C$2:C179,D180,E180),"А1"),"") -> 
A181: 179 | C181: =IF(B181,IFERROR(u_4(C$2:C180,D181,E181),"А1"),"") -> 
A182: 180 | C182: =IF(B182,IFERROR(u_4(C$2:C181,D182,E182),"А1"),"") -> 
A183: 181 | C183: =IF(B183,IFERROR(u_4(C$2:C182,D183,E183),"А1"),"") -> 
A184: 182 | C184: =IF(B184,IFERROR(u_4(C$2:C183,D184,E184),"А1"),"") -> 
A185: 183 | C185: =IF(B185,IFERROR(u_4(C$2:C184,D185,E185),"А1"),"") -> 
A186: 184 | C186: =IF(B186,IFERROR(u_4(C$2:C185,D186,E186),"А1"),"") -> 
A187: 185 | C187: =IF(B187,IFERROR(u_4(C$2:C186,D187,E187),"А1"),"") -> 
A188: 186 | C188: =IF(B188,IFERROR(u_4(C$2:C187,D188,E188),"А1"),"") -> 
A189: 187 | C189: =IF(B189,IFERROR(u_4(C$2:C188,D189,E189),"А1"),"") -> 
A190: 188 | C190: =IF(B190,IFERROR(u_4(C$2:C189,D190,E190),"А1"),"") -> 
A191: 189 | C191: =IF(B191,IFERROR(u_4(C$2:C190,D191,E191),"А1"),"") -> 
A192: 190 | C192: =IF(B192,IFERROR(u_4(C$2:C191,D192,E192),"А1"),"") -> 
A193: 191 | C193: =IF(B193,IFERROR(u_4(C$2:C192,D193,E193),"А1"),"") -> 
A194: 192 | C194: =IF(B194,IFERROR(u_4(C$2:C193,D194,E194),"А1"),"") -> 
A195: 193 | C195: =IF(B195,IFERROR(u_4(C$2:C194,D195,E195),"А1"),"") -> 
A196: 194 | C196: =IF(B196,IFERROR(u_4(C$2:C195,D196,E196),"А1"),"") -> 
A197: 195 | C197: =IF(B197,IFERROR(u_4(C$2:C196,D197,E197),"А1"),"") -> 
A198: 196 | C198: =IF(B198,IFERROR(u_4(C$2:C197,D198,E198),"А1"),"") -> 
A199: 197 | C199: =IF(B199,IFERROR(u_4(C$2:C198,D199,E199),"А1"),"") -> 
A200: 198 | C200: =IF(B200,IFERROR(u_4(C$2:C199,D200,E200),"А1"),"") -> 
A201: 199 | C201: =IF(B201,IFERROR(u_4(C$2:C200,D201,E201),"А1"),"") -> 
... 1388 more rows
